bitfinex-derivatives/quotes_ETHF0:USTF0_20241026
["timestamp","ask_amount","ask_price","bid_price","bid_amount"]
[1729924827748,1.3846,2476.6,2476.3,0.40428]
[1729924828255,1.3846,2476.6,2476.2,4.0501]
[1729924829052,1.3846,2476.6,2476.3,0.40428]
[1729924829549,1.3626,2476.7,2476.2,6.48158561]
[1729924829746,0.4177,2477.0,2476.6,0.40423]
[1729924829747,0.4306,2476.9,2476.6,0.40423]
[1729924830159,0.4306,2476.9,2476.6,0.85493]
[1729924832560,0.4306,2476.9,2476.6,0.4507]
[1729924832754,0.4306,2476.9,2476.6,0.85493]
[1729924832955,0.4306,2476.9,2476.6,0.4507]
[1729924833156,4.5997,2477.1,2476.7,0.40422]
[1729924833461,4.5997,2477.1,2476.6,3.28648561]
[1729924833462,4.5997,2477.1,2476.8,0.8318]
[1729924833662,3.6537,2477.1,2476.8,0.8318]
[1729924834055,0.4459,2477.1,2476.8,3.6354]
[1729924834260,0.4246,2477.0,2476.8,3.6354]
[1729924834657,0.4246,2477.0,2476.8,3.2078]
[1729924834857,0.4246,2477.0,2476.8,3.612]
[1729924835661,0.4246,2477.0,2476.8,3.2078]
[1729924836461,0.4246,2477.0,2476.8,3.612]
[1729924836761,0.8474,2477.5,2477.0,0.40416]
[1729924836963,1.76252,2477.4,2476.9,0.85338]
[1729924837356,0.40414,2477.3,2476.9,0.4492]
[1729924837755,1.3584,2477.4,2476.9,0.4492]
[1729924837756,0.40415,2477.2,2476.9,0.4492]
[1729924837960,0.40415,2477.2,2476.8,3.2078]
[1729924838163,0.40417,2477.0,2476.8,3.2078]
[1729924838361,2.83578561,2477.2,2476.8,3.2078]
[1729924838757,0.40417,2477.1,2476.8,3.2078]
[1729924839362,0.8477,2477.0,2476.8,3.2078]
[1729924839665,0.4364,2476.9,2476.8,3.2078]
[1729924840265,0.4364,2476.9,2476.4,0.81197]
[1729924840266,1.76259,2476.9,2476.4,0.81197]
[1729924840460,0.40421,2476.8,2476.4,0.4077]
[1729924841365,1.7626,2476.9,2476.4,0.81197]
[1729924841574,1.3584,2476.9,2476.6,3.61204]
[1729924842768,0.4364,2476.9,2476.6,3.61204]
[1729924843272,3.2078,2477.3,2477.0,0.40417]
[1729924843676,3.2078,2477.3,2476.6,3.2078]
[1729924843970,3.61193,2477.3,2476.8,0.4042]
[1729924844159,3.2078,2477.3,2476.9,0.40418]
[1729924844662,2.83578561,2477.2,2476.7,0.40421]
[1729924844862,2.83578561,2477.2,2476.9,0.40419]
[1729924845058,3.2078,2477.3,2476.9,0.40419]
[1729924845271,3.2078,2477.3,2477.0,0.40417]
[1729924845670,3.2078,2477.3,2477.1,0.4412]
[1729924846767,4.16189561,2477.4,2477.1,0.4412]
[1729924848467,2.83578561,2477.2,2476.9,3.2078]
[1729924848772,3.23993561,2477.2,2476.7,0.40421]
[1729924849369,0.4276,2477.1,2476.7,0.40421]
[1729924849769,0.83176,2477.1,2476.7,0.40421]
[1729924852268,0.83177,2477.1,2476.7,0.40422]
[1729924852470,0.8649,2477.0,2476.6,3.6431]
[1729924852773,0.8649,2477.0,2476.6,4.04733]
[1729924853076,0.8649,2477.0,2476.7,0.40422]
[1729924855465,0.8649,2477.0,2476.6,3.6431]
[1729924855671,1.26908,2477.0,2476.6,3.6431]
[1729924855868,1.26908,2477.0,2476.6,4.04734]
[1729924856262,0.4042,2476.9,2476.6,3.2078]
[1729924856778,4.10486561,2477.0,2476.6,3.2078]
[1729924858477,3.70068561,2477.0,2476.6,3.2078]
[1729924858778,4.10486561,2477.0,2476.6,3.2078]
[1729924859776,3.70068561,2477.0,2476.6,3.2078]
[1729924859973,0.4042,2476.9,2476.6,3.2078]
[1729924867786,3.70068561,2477.0,2476.6,3.2078]
[1729924867787,0.40421,2476.8,2476.6,3.2078]
[1729924867985,0.4509,2476.7,2476.3,4.0873]
[1729924868180,0.85513,2476.7,2476.3,3.6536]
[1729924868484,0.4175,2476.6,2476.3,4.05789]
[1729924869190,0.82174,2476.6,2476.3,3.6536]
[1729924869379,0.4175,2476.6,2476.3,4.05788]
[1729924870879,0.4175,2476.6,2476.3,3.6536]
[1729924871075,0.4175,2476.6,2476.4,0.40427]
[1729924872386,1.72818113,2476.6,2476.4,1.71495113]
[1729924872782,1.72818113,2476.6,2476.4,1.31068113]
[1729924873683,1.72818113,2476.6,2476.4,1.71495113]
[1729924874286,1.72818113,2476.6,2476.4,1.31068113]
[1729924874488,1.31068113,2476.5,2476.3,5.36856113]
[1729924874690,1.76018113,2476.5,2476.3,3.6536]
[1729924875192,1.31068113,2476.4,2476.3,3.6536]
[1729924875699,1.31068113,2476.4,2476.3,3.2078]
[1729924879394,1.31068113,2476.8,2476.3,8.96958113]
[1729924879687,9.3769816,2477.1,2476.3,8.96958113]
[1729924879688,1.31068113,2476.7,2476.6,3.61203]
[1729924880091,1.31068113,2476.7,2476.6,7.64963]
[1729924882293,1.31068113,2476.7,2476.6,4.44183]
[1729924882498,1.31068113,2476.7,2476.6,7.64963]
[1729924883890,5.41861324,2477.1,2476.6,8.55608113]
[1729924883891,1.31068113,2476.9,2476.6,8.55608113]
[1729924884091,1.31068113,2476.9,2476.7,0.81681]
[1729924884795,1.31068113,2477.0,2476.9,0.40419]
[1729924884992,1.31068113,2477.0,2476.8,1.74908113]
[1729924885292,1.31068113,2477.0,2476.8,2.15328113]
[1729924885888,1.31068113,2477.0,2476.8,1.74908113]
[1729924886091,1.31068113,2476.9,2476.8,0.4384]
[1729924886297,1.3115,2477.1,2476.8,0.4384]
[1729924886499,1.3115,2477.1,2476.8,0.8426]
[1729924888193,1.3115,2477.1,2476.9,3.2078]
[1729924888996,1.71566,2477.1,2476.9,3.2078]
[1729924889797,1.3115,2477.1,2476.9,3.2078]
[1729924891504,1.3115,2477.1,2476.7,0.81681]
[1729924892100,1.3115,2477.1,2476.9,3.2078]
[1729924893107,1.3115,2477.1,2476.7,0.81681]
[1729924893409,1.71566,2477.1,2476.9,3.2078]
[1729924893906,1.3115,2477.1,2476.9,3.2078]
[1729924895001,1.71566,2477.1,2476.9,3.2078]
[1729924895200,1.3115,2477.1,2476.9,3.2078]
[1729924895807,1.3115,2477.1,2476.8,0.40421]
[1729924896396,1.3115,2477.1,2476.9,3.2078]
[1729924898305,3.70295324,2477.3,2476.9,3.2078]
[1729924898503,0.4078,2477.4,2477.3,0.40412]
[1729924899008,0.4078,2477.4,2477.3,0.82222]
[1729924899401,0.4349,2477.5,2477.3,0.82222]
[1729924900312,0.4349,2477.5,2477.3,0.4181]
[1729924900513,0.4349,2477.5,2477.2,3.2078]
[1729924900810,0.4349,2477.5,2477.2,3.61194]
[1729924901010,0.4349,2477.5,2477.2,3.2078]
[1729924901609,0.839,2477.5,2477.2,3.2078]
[1729924902207,0.40412,2477.4,2477.2,3.2078]
[1729924902407,3.67845709,2477.5,2477.2,3.2078]
[1729924902709,0.40411,2477.4,2477.2,3.2078]
[1729924902908,0.40411,2477.4,2477.0,0.83326]
[1729924903114,0.40411,2477.4,2476.9,4.03008]
[1729924903509,0.40411,2477.4,2476.9,3.6259]
[1729924903910,0.40411,2477.4,2476.9,4.03008]
[1729924904307,0.40411,2477.4,2476.9,3.6259]
[1729924904508,0.40411,2477.4,2477.0,0.40417]
[1729924905808,0.40411,2477.4,2476.9,4.03008]
[1729924906407,1.31044154,2477.2,2477.0,1.31044154]
[1729924906602,1.31044154,2477.1,2476.9,3.6259]
[1729924906807,1.73594154,2477.1,2476.9,3.2078]
[1729924907104,2.14214154,2477.0,2476.9,3.2078]
[1729924907305,2.54631154,2477.0,2476.9,3.2078]
[1729924907505,2.54631154,2477.0,2476.5,0.40425]
[1729924907506,0.40419,2476.9,2476.5,4.92249154]
[1729924907710,1.31044154,2476.7,2476.5,4.92249154]
[1729924909117,1.31044154,2476.7,2476.6,1.31044154]
[1729924909511,1.31044154,2476.8,2476.6,1.31044154]
[1729924910516,1.31044154,2476.9,2476.7,1.31044154]
[1729924912216,1.31044154,2476.9,2476.8,3.2078]
[1729924913012,2.14214154,2477.0,2476.8,4.51824154]
[1729924914205,0.8317,2477.0,2476.9,1.31044154]
[1729924915013,2.14214154,2477.0,2476.9,1.31044154]
[1729924915518,2.14214154,2477.0,2476.8,4.51824154]
[1729924915712,2.14214154,2477.0,2476.8,4.92244154]
[1729924916816,0.4255,2477.1,2476.8,4.92244154]
[1729924917116,1.31044154,2477.0,2476.8,4.93124154]
[1729924917320,1.31044154,2477.0,2476.8,5.33544154]
[1729924917516,1.31044154,2477.0,2476.8,4.93124154]
[1729924917713,1.31044154,2476.9,2476.8,3.2078]
[1729924918423,2.15534154,2476.9,2476.8,3.2078]
[1729924919324,0.40421,2476.8,2476.5,4.51824154]
[1729924919512,1.31044154,2476.6,2476.5,3.2078]
[1729924921820,1.31044154,2476.7,2476.5,4.51824154]
[1729924922525,1.73744154,2476.8,2476.5,4.92249154]
[1729924923420,0.8449,2476.9,2476.7,1.31044154]
[1729924923627,0.8449,2476.9,2476.8,1.74044154]
[1729924924021,0.4326,2476.9,2476.8,2.14465154]
[1729924924326,0.4326,2476.9,2476.8,1.74044154]
[1729924924519,3.70295324,2477.2,2476.8,8.98584154]
[1729924924721,0.895,2477.2,2477.1,1.31044154]
[1729924927118,0.895,2477.2,2477.0,1.31044154]
[1729924928126,2.20544154,2477.2,2477.0,1.31044154]
[1729924929928,2.20544154,2477.2,2477.0,1.71461154]
[1729924930530,2.20544154,2477.2,2477.0,4.51824154]
[1729924930730,2.20544154,2477.2,2477.0,1.31044154]
[1729924930920,2.20544154,2477.2,2477.0,4.51824154]
[1729924931622,1.31044154,2477.2,2477.0,4.51824154]
[1729924931932,2.61744154,2477.3,2477.1,1.71460154]
[1729924932124,2.61744154,2477.3,2477.1,1.31044154]
[1729924932626,1.72244154,2477.3,2477.0,3.2078]
[1729924932827,1.72244154,2477.3,2477.0,4.51824154]
[1729924933431,1.72244154,2477.3,2477.0,4.92241154]
[1729924934733,1.72244154,2477.3,2477.0,4.51824154]
[1729924935034,1.31044154,2477.2,2477.0,4.51824154]
[1729924937127,1.31044154,2477.1,2477.0,3.2078]
[1729924937435,1.31044154,2477.1,2476.8,1.74044154]
[1729924937632,2.14184154,2477.0,2476.8,1.74044154]
[1729924937938,2.14184154,2477.0,2476.8,2.14465154]
[1729924937939,0.4355,2476.9,2476.8,2.14465154]
[1729924939631,0.4355,2476.9,2476.8,6.18225154]
[1729924940443,0.4355,2476.9,2476.8,1.74044154]
[1729924940934,0.4355,2476.9,2476.7,3.61201]
[1729924940935,1.74594154,2476.9,2476.7,3.2078]
[1729924941136,6.65848308,2476.8,2476.4,3.2078]
[1729924941339,1.31044154,2476.5,2476.4,3.2078]
[1729924941735,2.63974154,2476.5,2476.4,3.2078]
[1729924942834,3.04400154,2476.5,2476.4,3.2078]
[1729924944334,7.08240154,2476.5,2476.4,3.2078]
[1729924944535,6.67814154,2476.5,2476.1,3.2078]
[1729924944737,1.71473154,2476.3,2476.1,3.2078]
[1729924945136,1.71473154,2476.3,2476.1,4.51824154]
[1729924945740,1.31044154,2476.3,2476.1,4.51824154]
[1729924947548,2.20544154,2476.4,2476.2,1.31044154]
[1729924948141,2.20544154,2476.4,2476.1,3.2078]
[1729924948142,0.895,2476.4,2476.3,1.31044154]
[1729924948337,0.895,2476.4,2476.3,1.71473154]
[1729924948648,0.895,2476.4,2476.3,1.31044154]
[1729924950447,0.895,2476.4,2476.2,1.31044154]
[1729924950448,2.20544154,2476.4,2476.2,1.31044154]
[1729924951441,2.20544154,2476.4,2476.3,3.2078]
[1729924952340,2.20544154,2476.4,2476.2,1.31044154]
[1729924952544,2.20544154,2476.4,2476.3,3.2078]
[1729924953141,2.20544154,2476.4,2476.2,1.31044154]
[1729924953350,2.20544154,2476.4,2476.3,3.2078]
[1729924954148,2.60971154,2476.4,2476.3,3.2078]
[1729924955052,6.64811154,2476.4,2476.3,3.2078]
[1729924955949,6.64811154,2476.4,2476.0,2.12097454]
[1729924956153,2.20544154,2476.4,2476.1,3.2078]
[1729924956647,1.31044154,2476.3,2476.1,3.2078]
[1729924958857,1.31044154,2476.3,2476.0,2.12097454]
[1729924959249,1.31044154,2476.3,2476.1,4.51824154]
[1729924959553,2.20544154,2476.4,2476.2,1.31044154]
[1729924960347,1.31044154,2476.4,2476.2,1.31044154]
[1729924960548,0.895,2476.4,2476.2,1.31044154]
[1729924960756,2.20544154,2476.4,2476.1,4.93314154]
[1729924961546,2.20544154,2476.4,2476.1,5.33746154]
[1729924961747,1.31044154,2476.2,2476.0,0.406203]
[1729924961946,1.75244154,2476.1,2475.8,4.92260154]
[1729924962149,2.16614154,2476.1,2475.8,3.2078]
[1729924962353,1.26003,2476.1,2475.8,4.51824154]
[1729924962653,0.4311,2476.0,2475.8,4.92261154]
[1729924962853,0.4311,2476.0,2475.8,4.51824154]
[1729924963351,0.4311,2476.0,2475.8,4.92261154]
[1729924963843,0.4311,2476.0,2475.8,1.71481154]
[1729924964048,0.4311,2476.0,2475.9,3.2078]
[1729924966554,0.4311,2476.0,2475.9,4.92259154]
[1729924966757,0.8557,2476.1,2476.0,0.40434]
[1729924966947,0.8557,2476.1,2476.0,1.71478154]
[1729924967147,0.8557,2476.1,2476.0,2.13928154]
[1729924967454,0.4074,2476.3,2476.0,2.13928154]
[1729924967656,0.895,2476.3,2476.2,4.51824154]
[1729924969661,2.20544154,2476.3,2476.2,3.2078]
[1729924970559,0.895,2476.3,2476.2,3.2078]
[1729924970756,0.895,2476.3,2476.2,4.92253154]
[1729924971456,0.895,2476.3,2476.2,4.51824154]
[1729924972461,0.895,2476.3,2476.2,4.92254154]
[1729924972662,0.8495,2476.4,2476.2,4.92254154]
[1729924972959,1.7445,2476.4,2476.3,1.31044154]
[1729924973158,0.8495,2476.4,2476.3,1.31044154]
[1729924975862,0.8495,2476.4,2476.2,4.51824154]
[1729924976464,2.15994154,2476.4,2476.2,4.51824154]
[1729924978067,0.8495,2476.4,2476.2,4.92254154]
[1729924978970,0.8495,2476.4,2476.2,4.51824154]
[1729924979461,0.8495,2476.4,2476.3,3.2078]
[1729924980461,2.15994154,2476.4,2476.3,3.2078]
[1729924981967,0.8495,2476.4,2476.3,3.2078]
[1729924982166,0.8495,2476.4,2476.3,3.61209]
[1729924982565,0.8495,2476.4,2476.3,3.2078]
[1729924983064,1.3024,2476.6,2476.3,4.51824154]
[1729924983264,2.61284154,2476.6,2476.4,0.40426]
[1729924983466,2.61284154,2476.6,2476.4,0.83086]
[1729924984262,2.61284154,2476.6,2476.4,0.4266]
[1729924984862,2.61284154,2476.6,2476.4,0.83087]
[1729924985259,2.61284154,2476.6,2476.4,0.4266]
[1729924985468,1.71784154,2476.6,2476.4,0.83086]
[1729924985666,1.3024,2476.6,2476.4,1.73704154]
[1729924985867,1.3024,2476.6,2476.4,2.14131154]
[1729924987874,1.3024,2476.6,2476.4,1.73704154]
[1729924988076,1.3024,2476.6,2476.4,2.14130154]
[1729924988575,3.70295324,2476.8,2476.5,5.34804154]
[1729924988772,3.70295324,2476.8,2476.7,3.2078]
[1729924988773,5.46129478,2476.8,2476.7,3.2078]
[1729924988969,1.75834154,2476.8,2476.7,3.2078]
[1729924991172,2.16255154,2476.8,2476.7,3.2078]
[1729924991378,1.75834154,2476.8,2476.7,3.2078]
[1729924992178,2.16255154,2476.8,2476.7,3.2078]
[1729924993077,5.79594154,2476.8,2476.4,3.6344]
[1729924993277,1.31044154,2476.5,2476.4,4.03867]
[1729924993465,1.31044154,2476.5,2476.4,3.6344]
[1729924996176,1.31044154,2476.5,2476.4,3.2078]
[1729924997877,2.15464154,2476.5,2476.4,3.2078]
[1729925000485,2.15464154,2476.5,2476.2,2.15524154]
[1729925000678,0.4189,2476.4,2476.2,2.15524154]
[1729925000883,0.4189,2476.4,2476.3,3.2078]
[1729925001289,1.72934154,2476.4,2476.3,3.2078]
[1729925003585,1.72934154,2476.4,2476.3,4.51824154]
[1729925005088,1.72934154,2476.4,2476.3,1.31044154]
[1729925005279,1.72934154,2476.4,2476.3,4.51824154]
[1729925005682,0.4189,2476.4,2476.3,4.51824154]
[1729925008191,0.4189,2476.4,2476.3,1.31044154]
[1729925008391,0.4189,2476.4,2476.3,4.92253154]
[1729925011399,0.4189,2476.4,2476.3,1.71473154]
[1729925011597,0.4189,2476.4,2476.3,4.92253154]
[1729925013788,0.4189,2476.4,2476.3,1.71473154]
[1729925013994,0.4189,2476.4,2476.3,4.92253154]
[1729925014188,0.4189,2476.4,2476.3,3.61209]
[1729925016294,0.4189,2476.4,2476.3,0.40429]
[1729925016480,0.4189,2476.4,2476.3,3.61209]
[1729925016886,0.4189,2476.4,2476.3,0.40429]
[1729925017094,0.4189,2476.4,2476.3,3.61209]
[1729925017990,0.4189,2476.4,2476.3,0.40429]
[1729925018190,0.4189,2476.4,2476.3,3.61209]
[1729925018392,0.4189,2476.4,2476.3,3.7385043]
[1729925019394,3.70295324,2476.7,2476.3,3.3342143]
[1729925019593,1.31044154,2476.6,2476.4,0.40426]
[1729925019798,0.8566,2476.5,2476.4,0.40426]
[1729925020000,1.2948,2476.5,2476.4,0.40426]
[1729925021702,1.2948,2476.5,2476.3,3.61208]
[1729925022191,1.2948,2476.5,2476.3,3.2078]
[1729925022400,1.31044154,2476.4,2476.3,3.61209]
[1729925022594,1.31044154,2476.4,2476.3,3.73850703]
[1729925023099,1.31044154,2476.4,2476.3,3.33421703]
[1729925023490,1.2948,2476.5,2476.3,3.73849703]
[1729925023690,1.2948,2476.5,2476.3,3.61208]
[1729925025701,1.2948,2476.5,2476.3,3.2078]
[1729925027710,1.31044154,2476.4,2476.3,3.2078]
[1729925028010,1.31044154,2476.4,2476.3,3.33421873]
[1729925028400,1.31044154,2476.4,2476.3,3.2078]
[1729925028700,1.31044154,2476.4,2476.3,3.33421749]
[1729925029102,1.31044154,2476.4,2476.3,3.33421782]
[1729925031099,1.31044154,2476.4,2476.3,3.2078]
[1729925031409,1.31044154,2476.4,2476.3,3.33421871]
[1729925031905,1.31044154,2476.4,2476.3,3.33421803]
[1729925033203,1.31044154,2476.4,2476.3,3.2078]
[1729925033606,1.31044154,2476.4,2476.0,3.6253]
[1729925033798,1.31044154,2476.1,2476.0,3.2078]
[1729925034006,1.31044154,2476.1,2476.0,3.3342286]
[1729925034703,1.31044154,2476.1,2476.0,3.2078]
[1729925035107,2.19404154,2476.1,2476.0,3.2078]
[1729925036898,2.19404154,2476.1,2476.0,3.61214]
[1729925037104,2.19404154,2476.1,2476.0,4.92258154]
[1729925037304,3.70295324,2476.4,2476.0,8.55664154]
[1729925037507,5.90739478,2476.5,2476.3,4.92253154]
[1729925037712,5.90739478,2476.5,2476.4,0.442]
[1729925037908,2.20444154,2476.5,2476.4,0.442]
[1729925038404,5.90739478,2476.5,2476.4,0.84627]
[1729925039406,4.59695324,2476.5,2476.4,0.84627]
[1729925039618,4.59695324,2476.5,2476.4,0.442]
[1729925039619,5.90739478,2476.5,2476.4,0.442]
[1729925039912,1.31044154,2476.5,2476.4,0.442]
[1729925040107,1.31044154,2476.5,2476.4,0.84627]
[1729925040809,1.31044154,2476.5,2476.4,0.442]
[1729925042216,5.01339478,2476.5,2476.4,0.442]
[1729925043010,5.01339478,2476.5,2476.4,3.6498]
[1729925043414,5.01339478,2476.5,2476.4,0.442]
[1729925043618,5.01339478,2476.5,2476.4,3.6498]
[1729925044114,5.01339478,2476.5,2476.4,0.442]
[1729925044322,5.01339478,2476.5,2476.4,3.6498]
[1729925045517,5.01339478,2476.5,2476.4,3.2078]
[1729925045915,5.01339478,2476.5,2476.2,0.82679]
[1729925046114,1.31044154,2476.3,2476.2,0.82679]
[1729925046516,1.31044154,2476.3,2476.2,4.03459]
[1729925046717,1.31044154,2476.3,2476.2,5.34503154]
[1729925047229,1.31044154,2476.3,2476.2,2.13723154]
[1729925048320,1.31044154,2476.3,2476.2,5.34503154]
[1729925050235,1.31044154,2476.3,2476.2,4.94074154]
[1729925050435,1.31044154,2476.3,2476.2,3.6303]
[1729925053331,1.31044154,2476.3,2476.2,4.0346]
[1729925053834,1.31044154,2476.3,2476.2,3.6303]
[1729925055437,1.31044154,2476.3,2476.2,4.0346]
[1729925056338,1.31044154,2476.3,2476.2,3.6303]
[1729925057331,1.31044154,2476.3,2476.2,0.4225]
[1729925057531,1.31044154,2476.3,2476.2,3.6303]
[1729925057933,1.31044154,2476.3,2476.2,3.2078]
[1729925058842,1.71724154,2476.3,2476.2,3.2078]
[1729925064040,2.12153154,2476.3,2476.2,3.2078]
[1729925064846,0.40431,2476.2,2475.9,3.2078]
[1729925065040,1.31044154,2476.0,2475.9,3.2078]
[1729925065440,1.73764154,2476.0,2475.9,3.2078]
[1729925066449,2.14198154,2476.0,2475.9,3.2078]
[1729925067735,2.14198154,2476.0,2475.6,3.6423]
[1729925067936,1.31044154,2475.7,2475.6,3.6423]
[1729925068350,1.31044154,2475.7,2475.6,4.0467]
[1729925068542,1.31044154,2475.7,2475.6,3.6423]
[1729925070151,1.31044154,2475.7,2475.6,4.95274154]
[1729925074354,0.83154,2476.0,2475.6,4.95274154]
[1729925074355,1.31044154,2475.8,2475.6,5.35714154]
[1729925074757,0.4141,2476.1,2475.9,0.40434]
[1729925075055,0.445,2476.2,2476.0,1.73894154]
[1729925075355,0.894,2476.5,2476.3,0.40429]
[1729925075356,1.31044154,2476.5,2476.3,0.40429]
[1729925075552,3.70295324,2476.6,2476.4,3.2078]
[1729925075851,5.43478324,2476.7,2476.4,3.2078]
[1729925077055,1.31044154,2476.5,2476.4,3.2078]
[1729925078755,1.71470154,2476.5,2476.4,3.2078]
[1729925079455,2.60770154,2476.5,2476.4,3.2078]
[1729925080348,2.60770154,2476.5,2476.1,3.2078]
[1729925080552,1.31044154,2476.2,2476.1,3.61212]
[1729925080853,1.31044154,2476.2,2476.1,3.2078]
[1729925082757,1.31044154,2476.2,2476.0,0.4285]
[1729925082958,1.31044154,2476.1,2476.0,0.4285]
[1729925083149,1.31044154,2476.1,2476.0,3.6363]
[1729925084056,1.3246,2476.3,2476.0,4.94674154]
[1729925084257,1.3246,2476.3,2476.2,0.4043]
[1729925084258,1.31044154,2476.3,2476.2,0.4043]
[1729925085258,1.31044154,2476.3,2476.1,1.26791]
[1729925085458,1.31044154,2476.2,2476.1,1.26791]
[1729925086455,1.31044154,2476.3,2476.2,0.4043]
[1729925086658,1.3207,2476.5,2476.2,5.34884154]
[1729925086659,1.31044154,2476.5,2476.2,5.34884154]
[1729925086863,1.31044154,2476.7,2476.4,4.51824154]
[1729925087064,1.31044154,2476.7,2476.6,0.40424]
[1729925087665,1.31044154,2476.8,2476.7,0.40421]
[1729925087966,1.31044154,2476.8,2476.7,3.61201]
[1729925088356,1.31044154,2476.9,2476.7,4.51824154]
[1729925088560,3.70295324,2477.2,2476.9,0.40418]
[1729925088762,1.7548,2477.3,2476.8,1.31044154]
[1729925088763,1.31044154,2477.1,2477.0,4.03847]
[1729925089561,1.31044154,2477.1,2477.0,3.6343]
[1729925090670,1.31044154,2477.1,2477.0,4.03847]
[1729925090966,1.31044154,2477.2,2477.0,4.03847]
[1729925091166,1.31044154,2477.1,2477.0,3.6343]
[1729925091365,1.31044154,2477.1,2477.0,4.03847]
[1729925092364,1.31044154,2477.1,2477.0,5.34891154]
[1729925092774,1.31044154,2477.2,2477.0,5.34891154]
[1729925093265,1.7548,2477.3,2477.1,0.40416]
[1729925093472,1.31044154,2477.4,2477.2,1.31044154]
[1729925093867,1.31044154,2477.3,2477.1,4.92239154]
[1729925094570,1.31044154,2477.2,2477.1,3.2078]
[1729925098477,1.31044154,2477.2,2477.1,3.61196]
[1729925098974,1.31044154,2477.2,2477.1,4.92240154]
[1729925099876,1.31044154,2477.2,2477.1,3.2078]
[1729925100177,1.31044154,2477.2,2477.1,3.61196]
[1729925100372,1.31044154,2477.3,2477.1,4.51824154]
[1729925100873,0.40411,2477.4,2477.1,3.2078]
[1729925101072,2.62414154,2477.2,2477.1,3.2078]
[1729925102677,2.62414154,2477.2,2477.1,3.61196]
[1729925103371,1.3137,2477.2,2477.1,4.92240154]
[1729925103979,1.3137,2477.2,2477.1,1.71460154]
[1729925104169,1.3137,2477.2,2477.1,4.51824154]
[1729925105183,1.3137,2477.2,2477.1,4.92240154]
[1729925105573,1.3137,2477.2,2477.1,1.71460154]
[1729925105872,1.3137,2477.2,2477.1,3.2078]
[1729925105873,2.62414154,2477.2,2477.1,3.2078]
[1729925107272,2.62414154,2477.2,2477.1,3.61196]
[1729925107871,2.62414154,2477.2,2477.1,0.40416]
[1729925108371,2.62414154,2477.2,2477.1,3.2078]
[1729925112170,3.02828154,2477.2,2477.1,3.2078]
[1729925112365,7.06508154,2477.2,2477.1,3.2078]
[1729925115380,6.66094154,2477.2,2477.1,3.2078]
[1729925115679,7.06508154,2477.2,2477.1,3.2078]
[1729925115976,6.66094154,2477.2,2477.1,3.2078]
[1729925117176,7.06508154,2477.2,2477.1,3.2078]
[1729925118680,7.06508154,2477.2,2476.9,3.2078]
[1729925118873,1.31044154,2477.0,2476.9,3.2078]
[1729925121679,1.31044154,2477.0,2476.6,3.2078]
[1729925121680,6.64421154,2477.0,2476.6,3.2078]
[1729925121884,1.31044154,2476.7,2476.6,3.2078]
[1729925127679,1.71466154,2476.7,2476.6,3.2078]
[1729925127877,5.34804154,2476.7,2476.3,1.31044154]
[1729925128077,1.31044154,2476.5,2476.4,1.31044154]
[1729925129479,1.31044154,2476.5,2476.2,4.51824154]
[1729925129778,0.83535,2476.6,2476.3,1.31044154]
[1729925129779,2.15424154,2476.4,2476.3,1.31044154]
[1729925131382,3.69041819,2476.9,2476.3,1.31044154]
[1729925131383,3.2078,2477.0,2476.6,0.40423]
[1729925131581,3.2078,2477.0,2476.8,1.31044154]
[1729925131884,1.31044154,2476.9,2476.8,1.31044154]
[1729925132682,1.31044154,2476.9,2476.7,2.57826154]
[1729925134682,1.31044154,2476.9,2476.7,2.17404154]
[1729925134883,1.31044154,2476.8,2476.7,0.8636]
[1729925135083,2.20644154,2476.8,2476.7,0.4325]
[1729925135282,2.65664154,2476.8,2476.7,0.4325]
[1729925136589,3.06085154,2476.8,2476.7,0.4325]
[1729925136795,3.06085154,2476.8,2476.6,1.31044154]
[1729925136998,1.31044154,2476.7,2476.6,1.31044154]
[1729925137286,1.31044154,2476.7,2476.5,1.71994154]
[1729925140797,1.3462,2476.8,2476.6,1.31044154]
[1729925140987,0.892,2477.2,2476.9,0.40419]
[1729925141193,10.38585973,2477.3,2477.0,1.73364154]
[1729925141496,1.31044154,2477.1,2477.0,0.4232]
[1729925141683,1.71460154,2477.1,2476.7,3.6491]
[1729925141994,1.31044154,2477.0,2476.8,1.73364154]
[1729925143692,0.4118,2476.9,2476.8,1.73364154]
[1729925146788,1.2907,2476.9,2476.8,1.73364154]
[1729925147697,1.31044154,2477.1,2476.8,1.73364154]
[1729925147897,2.19824154,2477.1,2476.8,1.73364154]
[1729925148299,2.60240154,2477.1,2476.8,1.73364154]
[1729925150893,0.8878,2477.1,2477.0,1.31044154]
[1729925151592,3.69041819,2477.5,2477.0,1.31044154]
[1729925151793,0.4275,2477.4,2477.3,1.31044154]
[1729925151992,0.4275,2477.4,2477.1,0.45]
[1729925151993,1.73794154,2477.4,2477.1,1.2938]
[1729925152196,1.31044154,2477.3,2477.1,1.2938]
[1729925153592,1.31044154,2477.3,2477.1,1.69796]
[1729925155800,1.31044154,2477.3,2477.1,1.2938]
[1729925156298,1.31044154,2477.3,2477.1,0.8622]
[1729925156999,1.31044154,2477.3,2477.1,1.26636]
[1729925157194,1.73794154,2477.4,2477.1,2.57680154]
[1729925157604,1.73794154,2477.4,2477.3,1.31044154]
[1729925157803,0.8705,2477.5,2477.3,1.31044154]
[1729925158003,1.29,2477.5,2477.3,1.31044154]
[1729925159207,2.60044154,2477.5,2477.3,1.31044154]
[1729925160203,2.60044154,2477.5,2477.2,1.72534154]
[1729925160505,1.29,2477.5,2477.4,1.71455154]
[1729925160705,1.29,2477.5,2477.4,1.31044154]
[1729925161204,1.29,2477.5,2477.4,1.76094154]
[1729925161406,2.60044154,2477.5,2477.4,1.76094154]
[1729925162308,1.29,2477.5,2477.4,2.16505154]
[1729925162503,0.8545,2477.5,2477.4,2.16505154]
[1729925162807,0.8545,2477.5,2477.4,1.76094154]
[1729925163108,2.16494154,2477.5,2477.4,1.76094154]
[1729925163304,2.16494154,2477.5,2477.1,0.4122]
[1729925163505,1.31044154,2477.4,2477.2,1.71458154]
[1729925163706,1.31044154,2477.4,2477.2,1.31044154]
[1729925164008,2.16494154,2477.5,2477.3,1.31044154]
[1729925165705,2.56903154,2477.5,2477.3,1.31044154]
[1729925166203,2.16494154,2477.5,2477.3,1.31044154]
[1729925173311,1.31044154,2477.4,2477.2,3.2078]